fUST/lending_fUST_20251205
["ID","MTS","AMOUNT","RATE_DAILY","PERIOD"]
[396252837,1764881442640,-38000.0,0.0002115,3]
[396252839,1764881442650,-38000.0,0.00021158,3]
[396252841,1764881442659,-168.0,0.00021195,2]
[396252843,1764881442668,-10438.87597831,0.000212,3]
[396252845,1764881442677,-2363.19,0.000212,2]
[396252847,1764881442687,-151.0,0.000213,3]
[396252848,1764881442696,-168.0,0.00021399,2]
[396252850,1764881442706,-168.0,0.00021469,2]
[396252852,1764881442715,-693.67,0.000215,2]
[396252854,1764881442725,-1333.75,0.000216,2]
[396252856,1764881442735,-168.0,0.00021642,2]
[396252857,1764881442744,-2000.0,0.00021652,7]
[396252859,1764881442754,-168.0,0.00021682,2]
[396252861,1764881442763,-316.69285891,0.00021728,17]
[396252862,1764881442774,-1000.0,0.00021798,10]
[396252864,1764881442783,-492.0,0.00021798,10]
[396252866,1764881442792,-151.0,0.000218,3]
[396252868,1764881442802,-2528.22076675,0.0002187,2]
[396252869,1764881442812,-275.0,0.00021888,120]
[396252870,1764881442821,-275.0,0.00021898,120]
[396252871,1764881442830,-275.0,0.00021908,120]
[396252872,1764881442839,-500.0,0.00021918,120]
[396252873,1764881442849,-200.0,0.00021918,2]
[396252874,1764881442859,-200.0,0.00021999,2]
[396252875,1764881442868,-275175.55,0.00022,2]
[396252876,1764881442878,-452.0,0.00022,2]
[396252877,1764881442887,-812.961645,0.00022032,10]
[396252878,1764881442896,-600.0,0.00022061,7]
[396252879,1764881442906,-151.0,0.000221,8]
[396252880,1764881442916,-168.0,0.00022104,2]
[396252881,1764881442926,-452.0,0.00022192,7]
[396252894,1764881443142,-168.0,0.00022197,2]
[396252896,1764881443152,-349.33586702,0.00022292,2]
[396252898,1764881443161,-414.0,0.00022302,2]
[396252900,1764881443172,-2000.0,0.00022348,7]
[396252902,1764881443182,-316.69285891,0.00022356,32]
[396252904,1764881443192,-2260.722,0.00022362,15]
[396252906,1764881443202,-2363.19,0.000224,2]
[396252908,1764881443213,-1240.3,0.000224,14]
[396252910,1764881443223,-452.0,0.00022466,7]
[396252912,1764881443233,-151.0,0.000227,5]
[396252915,1764881443243,-452.0,0.0002274,7]
[396252917,1764881443254,-174.11866865,0.00022807,2]
[396252919,1764881443264,-151.0,0.000229,10]
[396252921,1764881443278,-316.69285891,0.00022984,48]
[396252923,1764881443288,-1333.75,0.00023,7]
[396252925,1764881443297,-693.67,0.00023,7]
[396252927,1764881443307,-452.0,0.00023014,7]
[396252928,1764881443317,-452.0,0.00023014,7]
[396252930,1764881443327,-285.0,0.00023043,2]
[396252932,1764881443337,-2000.0,0.00023044,7]
[396252935,1764881443348,-399.12955785,0.000231,7]
[396252937,1764881443359,-600.0,0.00023157,7]
[396252939,1764881443369,-154.39147907,0.00023332,56]
[396252941,1764881443378,-249.21913972,0.00023366,56]
[396252943,1764881443387,-200.0,0.00023444,30]
[396252944,1764881443396,-200.0,0.00023444,30]
[396252946,1764881443405,-206.74824697,0.00023444,30]
[396252948,1764881443415,-151.0,0.000235,10]
[396252950,1764881443424,-151.0,0.000236,6]
[396252952,1764881443434,-151.0,0.000236,8]
[396252954,1764881443444,-316.69285891,0.00023612,63]
[396252956,1764881443453,-276.40366311,0.00023671,10]
[396252958,1764881443464,-151.0,0.000237,6]
[396252960,1764881443476,-2000.0,0.00023739,7]
[396252962,1764881443486,-1000.0,0.00023978,10]
[396252964,1764881443496,-791.0,0.00023978,10]
[396252967,1764881443506,-12000.0,0.00024,2]
[396252969,1764881443516,-2363.19,0.00024,2]
[396252971,1764881443526,-151.0,0.00024,6]
[396252973,1764881443535,-452.0,0.00024164,7]
[396252975,1764881443545,-452.0,0.00024164,7]
[396252977,1764881443554,-316.69285891,0.0002424,79]
[396252978,1764881443564,-600.0,0.00024253,7]
[396252980,1764881443575,-1240.3,0.000243,14]
[396252982,1764881443584,-200.0,0.00024379,120]
[396252983,1764881443594,-200.0,0.00024396,120]
[396252984,1764881443603,-200.0,0.00024418,120]
[396252985,1764881443612,-2000.0,0.00024435,7]
[396252986,1764881443621,-200.27757386,0.00024499,2]
[396252987,1764881443631,-275175.55,0.000245,2]
[396252988,1764881443641,-1333.75,0.000245,7]
[396252989,1764881443650,-693.67,0.000245,7]
[396252990,1764881443659,-200.0,0.00024576,120]
[396252991,1764881443669,-200.0,0.0002459,120]
[396252992,1764881443679,-500.0,0.00024657,2]
[396252993,1764881443688,-500.0,0.00024657,2]
[396252994,1764881443698,-500.0,0.00024657,2]
[396252995,1764881443708,-500.0,0.00024657,2]
[396252996,1764881443716,-500.0,0.00024657,2]
[396252997,1764881443727,-500.0,0.00024657,2]
[396252998,1764881443736,-500.0,0.00024657,2]
[396252999,1764881443746,-500.0,0.00024657,2]
[396253000,1764881443756,-500.0,0.00024657,2]
[396253001,1764881443765,-500.0,0.00024657,2]
[396253002,1764881443775,-500.0,0.00024657,2]
[396253003,1764881443784,-500.0,0.00024657,2]
[396253004,1764881443794,-519.54624366,0.00024657,2]
[396253005,1764881443803,-500.0,0.00024658,120]
[396253006,1764881443811,-150.0,0.00024658,2]
[396253007,1764881443821,-380.0,0.00024658,2]
[396253008,1764881443831,-151.285015,0.00024658,2]
[396253009,1764881443840,-249.21913972,0.0002482,30]
[396253010,1764881443850,-150.0,0.0002482,30]
[396253011,1764881443859,-7882.62524982,0.00024832,2]
[396253012,1764881443868,-2528.22076675,0.00024849,2]
[396253013,1764881443877,-316.69285891,0.00024868,94]
[396253014,1764881443886,-200.0,0.00024878,120]
[396253015,1764881443896,-249.21913971,0.00024886,30]
[396253016,1764881443905,-265498.03,0.00024899,30]
[396253017,1764881443914,-200.0,0.000249,120]
[396253018,1764881443923,-652809.280879,0.000249,2]
[396253019,1764881443933,-1257.66470239,0.00024949,11]
[396253020,1764881443944,-6710.0,0.00025,2]
[396253021,1764881443954,-616.708566,0.00025,120]
[396253022,1764881443964,-192.53149985,0.00025,120]
[396253023,1764881443976,-343.16251641,0.00025,120]
[396253024,1764881443986,-521.71267563,0.00025,120]
[396253025,1764881443995,-435.88040811,0.00025,120]
[396253026,1764881444004,-161.93845004,0.00025,120]
[396253027,1764881444013,-399.12955785,0.00025,30]
[396253028,1764881444022,-312.0,0.00025043,2]
[396253029,1764881444031,-2000.0,0.00025131,7]
[396253030,1764881444041,-452.0,0.00025131,7]
[396253031,1764881444051,-250.0,0.00025205,2]
[396253032,1764881444060,-200.0,0.00025251,120]
[396253033,1764881444069,-160.53768237,0.0002529,5]
[396253034,1764881444078,-2363.19,0.000253,2]
[396253035,1764881444088,-414.0,0.00025302,2]
[396253036,1764881444098,-452.0,0.00025315,7]
[396253037,1764881444108,-600.0,0.00025349,7]
[396253038,1764881444117,-200.0,0.00025351,120]
[396253039,1764881444126,-316.69285891,0.00025496,110]
[396253040,1764881444136,-716.4189,0.000255,2]
[396253041,1764881444146,-158.34642947,0.00025565,110]
[396253042,1764881444156,-179.17001105,0.00025565,110]
[396253043,1764881444165,-154.39147907,0.00025565,110]
[396253044,1764881444175,-350.0,0.00025753,2]
[396253045,1764881444184,-150.0,0.00025783,110]
[396253046,1764881444194,-418.18,0.000258,30]
[396253047,1764881444204,-200.0,0.000258,14]
[396253048,1764881444214,-1240.3,0.000258,14]
[396253049,1764881444226,-399.12955785,0.000258,30]
[396253050,1764881444236,-2000.0,0.00025826,7]
[396253051,1764881444246,-275175.55,0.000259,2]
[396253052,1764881444257,-1333.75,0.000259,7]
[396253053,1764881444271,-200.0,0.00025911,120]
[396253054,1764881444285,-501.77804736,0.00025944,7]
[396253055,1764881444295,-39615.18962323,0.00026,10]
[396253056,1764881444305,-528.38205489,0.00026,2]
[396253057,1764881444316,-19900.0,0.00026,2]
[396253058,1764881444326,-161.0,0.00026,5]
[396253059,1764881444336,-500.0,0.00026,30]
[396253060,1764881444347,-341.52840446,0.00026,2]
[396253061,1764881444357,-6733.0,0.00026,60]
[396253062,1764881444366,-444.76344571,0.00026,120]
[396253063,1764881444376,-399.12955785,0.00026,10]
[396253064,1764881444385,-500.0,0.00026067,7]
[396253065,1764881444397,-452.0,0.00026098,7]
[396253066,1764881444406,-7882.62524982,0.00026155,2]
[396253067,1764881444417,-194.0623799,0.0002616,2]
[396253068,1764881444427,-200.0,0.00026237,120]
[396253069,1764881444438,-450.0,0.00026301,2]
[396253070,1764881444448,-1000.0,0.00026376,30]
[396253071,1764881444458,-1000.0,0.00026376,30]
[396253072,1764881444467,-200.0,0.00026436,120]
[396253073,1764881444477,-452.0,0.00026466,7]
[396253074,1764881444486,-200.0,0.00026498,120]
[396253075,1764881444495,-2000.0,0.00026522,7]
[396253076,1764881444504,-430.328306,0.00026676,2]
[396253077,1764881444513,-200.0,0.00026693,120]
[396253078,1764881444523,-208.0,0.000268,6]
[396253079,1764881444532,-45000.0,0.00026841,2]
[396253080,1764881444541,-200.0,0.00026847,120]
[396253081,1764881444550,-550.0,0.00026849,2]
[396253082,1764881444560,-884.36654555,0.00026932,7]
[396253083,1764881444569,-2239.62,0.0002698,7]
[396253084,1764881444578,-7045.5,0.00027,30]
[396253085,1764881444587,-339.0,0.00027043,2]
[396253086,1764881444596,-452.0,0.00027064,7]
[396253087,1764881444605,-295.8915738,0.00027123,2]
[396253088,1764881444615,-192.2832849,0.00027123,2]
[396253089,1764881444624,-192.2832849,0.00027123,2]
[396253090,1764881444633,-1014.6127159,0.00027123,3]
[396253091,1764881444643,-1333.75,0.000272,7]
[396253092,1764881444652,-1240.3,0.000272,14]
[396253093,1764881444661,-200.0,0.00027212,120]
[396253094,1764881444670,-2000.0,0.00027217,7]
[396253095,1764881444679,-275.0,0.00027269,120]
[396253096,1764881444689,-275.0,0.00027279,120]
[396253097,1764881444698,-275.0,0.00027289,120]
[396253098,1764881444708,-200.0,0.00027299,120]
[396253099,1764881444717,-145230.28105029,0.000273,2]
[396253100,1764881445434,-6979.34107445,0.000273,2]
[396253101,1764881445446,-475.9999938,0.000273,2]
[396253102,1764881445457,-528.78757581,0.000273,2]
[396253103,1764881445469,-776.7065474,0.000273,2]
[396253104,1764881445480,-8503.47529607,0.000273,2]
[396253105,1764881445491,-886.7462414,0.000273,2]
[396253107,1764881445729,-0.00111679,0.000273,2]
[396253110,1764881445740,-1754.96,0.000273,2]
[396253112,1764881445755,-3338.98407489,0.000273,2]
[396253145,1764881446187,-677.35,0.00026982,10]
[396253146,1764881446197,-2072.810186,0.00026982,15]
[396253147,1764881446208,-8807.71113226,0.000273,2]
[396253247,1764881640670,924.11014659,0.0001411,9]
[396253248,1764881657164,860.8,0.0001411,9]
[396253258,1764882632328,-1029.57498101,0.00013168,2]
[396253325,1764882638396,-931.278394,0.00013168,2]
[396253326,1764882638407,-258.0,0.00013168,2]
[396253327,1764882638417,-150.0,0.00013172,2]
[396253328,1764882638427,-386.49377753,0.00013173,2]
[396253329,1764882638437,-238.6616624,0.00013259,2]
[396253330,1764882638454,-435.3383376,0.00013259,2]
[396253331,1764882638464,-300.0,0.00013259,2]
[396253332,1764882638474,-1433.35787868,0.0001326,2]
[396253333,1764882638487,-1646.08159874,0.0001326,2]
[396253334,1764882638498,-3562.80100511,0.0001326,2]
[396253335,1764882638510,-22946.75951747,0.0001326,2]
[396253337,1764882638519,-500.0,0.00013268,2]
[396253339,1764882638529,-500.0,0.00013268,2]
[396253340,1764882638538,-375.30550918,0.00013268,2]
[396253342,1764882638548,-500.0,0.00013268,2]
[396253343,1764882638557,-500.0,0.00013268,2]
[396253344,1764882638566,-500.0,0.00013268,2]
[396253345,1764882638575,-500.0,0.00013268,2]
[396253346,1764882638584,-500.0,0.00013268,2]
[396253347,1764882638594,-500.0,0.00013268,2]
[396253348,1764882638603,-500.0,0.00013268,2]
[396253349,1764882638612,-500.0,0.00013268,2]
[396253350,1764882638622,-500.0,0.00013268,2]
[396253351,1764882638632,-500.0,0.00013268,2]
[396253352,1764882638641,-422.25439183,0.00013268,2]
[396253353,1764882638657,-14.17674933,0.00013268,2]
[396253354,1764882638667,-429.2056889,0.00013269,2]
[396253355,1764882638678,-296.26393716,0.00013269,2]
[396253361,1764882640574,-804.7719191,0.00013269,2]
[396253370,1764882643486,-629.45209132,0.00013269,2]
[396253371,1764882643545,-26495.02931534,0.00013269,2]
[396253372,1764882643557,-5396.0609,0.00013269,2]
[396253388,1764882646440,-3421.29498103,0.00013269,2]
[396253423,1764882664432,-301.26,0.00013006,2]
[396253424,1764882664459,-301.26,0.00013137,2]
[396253425,1764882664488,-300.0,0.00013268,2]
[396253426,1764882664519,-500.0,0.00013268,2]
[396253427,1764882664548,-377.12054585,0.00013268,2]
[396253428,1764882664577,-500.0,0.00013268,2]
[396253429,1764882664605,-380.3462561,0.00013268,2]
[396253430,1764882664634,-12527.92116715,0.00013269,2]
[396253431,1764882664660,-500.0,0.00013273,2]
[396253432,1764882664688,-500.0,0.00013273,2]
[396253433,1764882664715,-454.96116382,0.00013273,2]
[396253434,1764882664750,-500.0,0.00013273,2]
[396253435,1764882664779,-500.0,0.00013273,2]
[396253436,1764882664807,-647.60398022,0.00013273,2]
[396253437,1764882664833,-506.49517835,0.00013273,2]
[396253438,1764882664859,-500.0,0.00013273,2]
[396253439,1764882664887,-500.0,0.00013273,2]
[396253440,1764882664914,-500.0,0.00013273,2]
[396253441,1764882664940,-500.0,0.00013273,2]
[396253442,1764882664966,-415.43036972,0.00013273,2]
[396253443,1764882664993,-500.0,0.00013273,2]
[396253444,1764882665019,-500.0,0.00013273,2]
[396253445,1764882665045,-500.0,0.00013273,2]
[396253446,1764882665072,-1000.0,0.00013699,2]
[396253447,1764882665099,-249.806019,0.00013699,2]
[396253448,1764882665127,-1000.0,0.00013821,2]
[396253449,1764882665831,500.0,0.00013273,2]
[396253450,1764882667427,500.0,0.00013273,2]
[396253451,1764882672033,500.0,0.00013273,2]
[396253453,1764882679797,500.0,0.00013273,2]
[396253454,1764882704076,373.683503,0.00013277,2]
[396253455,1764882726527,500.0,0.00013273,2]
[396253456,1764882726874,300.0,0.00013673,2]
[396253457,1764882730203,500.0,0.00013273,2]
[396253458,1764882730808,500.0,0.00013273,2]
[396253459,1764882747400,712.6520657,0.00013277,2]
[396253462,1764882783949,500.0,0.00013273,2]
[396253463,1764882783999,1133.46335829,0.00013821,2]
[396253464,1764882845158,500.0,0.00013273,2]
[396253465,1764882903697,500.0,0.00013273,2]
[396253466,1764882903749,975.28347544,0.00013821,2]
[396253469,1764882919552,255.5677506,0.00013277,2]
[396253471,1764882966375,500.0,0.00013273,2]
[396253472,1764883158433,500.0,0.00013698,2]
[396253473,1764883158690,500.0,0.00013698,2]
[396253474,1764883158945,500.0,0.00013698,2]
[396253475,1764883159274,500.0,0.00013698,2]
[396253476,1764883263330,411.96573467,0.00013821,2]
[396253477,1764883263409,500.0,0.00013273,2]
[396253482,1764883611147,-373.683503,0.00015029,2]
[396253483,1764883611168,-30.37316886,0.00015029,2]
[396253484,1764883682488,151.72,1e-05,2]
[396253485,1764883682765,151.72,1.2e-05,2]
[396253486,1764883684091,151.72,1.4e-05,2]
[396253487,1764883684164,128.523503,1.5e-05,2]
[396253488,1764883684189,23.196497,1.5e-05,2]
[396253489,1764883684248,151.72,1.7e-05,2]
[396253490,1764883684283,151.72,1.9e-05,2]
[396253491,1764883684371,151.72,2.1e-05,2]
[396253492,1764883684655,151.72,2.3e-05,2]
[396253493,1764883685019,151.72,2.5e-05,2]
[396253494,1764883685295,151.72,2.6e-05,2]
[396253495,1764883685622,151.72,2.8e-05,2]
[396253496,1764883685939,151.72,3e-05,2]
[396253497,1764883686243,151.72,3.2e-05,2]
[396253498,1764883686534,151.72,3.4e-05,2]
[396253499,1764883686856,151.72,3.6e-05,2]
[396253500,1764883687143,151.72,3.7e-05,2]
[396253501,1764883687415,151.72,3.9e-05,2]
[396253502,1764883687975,151.72,4.1e-05,2]
[396253503,1764883688301,151.72,4.3e-05,2]
[396253504,1764883688574,151.72,4.5e-05,2]
[396253505,1764883688865,151.72,4.6e-05,2]
[396253506,1764883689207,151.72,4.8e-05,2]
[396253507,1764883689903,151.72,5e-05,2]
[396253508,1764883690246,151.72,5.2e-05,2]
[396253509,1764883690517,151.72,5.4e-05,2]
[396253510,1764883690849,151.72,5.6e-05,2]
[396253511,1764883691162,151.72,5.7e-05,2]
[396253512,1764883691436,151.72,5.9e-05,2]
[396253513,1764883691725,151.72,6.1e-05,2]
[396253514,1764883692004,151.72,6.3e-05,2]
[396253515,1764883692301,151.72,6.5e-05,2]
[396253516,1764883692579,151.72,6.7e-05,2]
[396253517,1764883692903,151.72,6.8e-05,2]
[396253518,1764883693231,151.72,7e-05,2]
[396253519,1764883693506,151.72,7.2e-05,2]
[396253520,1764883693840,151.72,7.4e-05,2]
[396253521,1764883695065,151.72,7.6e-05,2]
[396253522,1764883695096,151.72,7.7e-05,2]
[396253523,1764883695798,151.72,7.9e-05,2]
[396253524,1764883696176,151.72,8.1e-05,2]
[396253525,1764883696479,151.72,8.3e-05,2]
[396253526,1764883696777,151.72,8.5e-05,2]
[396253527,1764883697064,151.72,8.7e-05,2]
[396253528,1764883697346,151.72,8.8e-05,2]
[396253529,1764883697630,151.72,9e-05,2]
[396253530,1764883698038,151.72,9.2e-05,2]
[396253531,1764883698342,151.72,9.4e-05,2]
[396253532,1764883698635,151.72,9.6e-05,2]
[396253533,1764883699761,151.65,1e-05,2]
[396253534,1764883709242,692.28024659,0.0001,7]
[396253535,1764883721123,24468.26087171,0.000135,2]
[396253546,1764883832485,-3420.5898142,0.00013293,2]
[396253548,1764883832495,-259.0,0.00013293,2]
[396253549,1764883832504,-150.0,0.00013396,2]
[396253550,1764883832514,-300.0,0.00013499,2]
[396253551,1764883832523,-300.0,0.00013499,2]
[396253552,1764883832532,-1200.0,0.00013499,2]
[396253553,1764883832541,-90147.82707441,0.000135,2]
[396253554,1764883832552,-538.32449448,0.000135,2]
[396253660,1764883838714,-748.8671078,0.000135,2]
[396253670,1764883840667,-250.77106545,0.000135,2]
[396253671,1764883840679,-453.0,0.000135,2]
[396253676,1764883841844,-14958.61051294,0.000135,2]
[396253686,1764883843814,-2475.99630537,0.000135,2]
[396253687,1764883843872,-417.55037667,0.000135,2]
[396253700,1764883846669,-561.00000001,0.000135,2]
[396253713,1764883948289,533.94,0.0001,2]
[396253714,1764883948879,533.94,0.0001,2]
[396253715,1764883949749,533.94,0.0001,2]
[396253716,1764883950618,533.94,0.0001,2]
[396253717,1764883951513,533.94,0.0001,2]
[396253718,1764884039991,462.228,0.00012877,2]
[396253719,1764884048143,462.228,0.00012877,2]
[396253720,1764884077572,5000.0,0.00012877,2]
[396253721,1764884282886,215.2,0.00012008,2]
[396253722,1764884283148,215.2,0.00012008,2]
[396253723,1764884293438,5000.0,0.00012877,2]
[396253724,1764884315477,5000.0,0.00012877,2]
[396253725,1764884338469,5000.0,0.00012877,2]
[396253726,1764884360570,5000.0,0.00012877,2]
[396253727,1764884383054,5000.0,0.00012877,2]
[396253728,1764884404373,3672.65737965,0.00012877,2]
[396253729,1764884418939,-876.50952974,0.00012877,2]
[396253730,1764884422174,-270.57063581,0.00012877,2]
[396253731,1764884433541,845.70049009,0.00012751,2]
[396253733,1764884598102,5000.0,0.00012751,2]
[396253734,1764884620372,5000.0,0.00012751,2]
[396253735,1764884642687,5000.0,0.00012751,2]
[396253742,1764885031700,-256.0,0.00012975,2]
[396253743,1764885031711,-150.0,0.00012975,2]
[396253744,1764885031720,-300.0,0.00013168,2]
[396253745,1764885031735,-1200.0,0.00013168,2]
[396253746,1764885031745,-251.0,0.00013168,2]
[396253747,1764885031754,-68.21681858,0.00013169,2]
[396253748,1764885031767,-431.78318142,0.00013169,2]
[396253749,1764885031778,-283.12800598,0.00013169,2]
[396253750,1764885031791,-216.87199402,0.00013169,2]
[396253751,1764885031799,-596.65111847,0.00013169,2]
[396253752,1764885031809,-500.0,0.00013169,2]
[396253753,1764885031818,-500.0,0.00013169,2]
[396253754,1764885031828,-500.0,0.00013169,2]
[396253755,1764885031837,-500.0,0.00013169,2]
[396253756,1764885031847,-184.34039686,0.00013169,2]
[396253757,1764885031858,-315.65960314,0.00013169,2]
[396253758,1764885031868,-500.0,0.00013169,2]
[396253759,1764885031878,-500.0,0.00013169,2]
[396253760,1764885031887,-500.0,0.00013169,2]
[396253761,1764885031898,-500.0,0.00013169,2]
[396253762,1764885031907,-500.0,0.00013169,2]
[396253763,1764885031916,-500.0,0.00013169,2]
[396253764,1764885031927,-500.0,0.00013169,2]
[396253765,1764885031936,-500.0,0.00013169,2]
[396253766,1764885031946,-500.0,0.00013169,2]
[396253767,1764885031956,-215.15901568,0.00013169,2]
[396253768,1764885031966,-500.0,0.00013169,2]
[396253769,1764885031975,-194.04766872,0.00013169,2]
[396253770,1764885031985,-500.0,0.00013169,2]
[396253771,1764885031995,-500.0,0.00013169,2]
[396253772,1764885032005,-500.0,0.00013169,2]
[396253773,1764885032015,-500.0,0.00013169,2]
[396253774,1764885032024,-500.0,0.00013169,2]
[396253775,1764885032035,-500.0,0.00013169,2]
[396253776,1764885032044,-500.0,0.00013169,2]
[396253777,1764885032054,-500.0,0.00013169,2]
[396253778,1764885032064,-500.0,0.00013169,2]
[396253779,1764885032074,-500.0,0.00013169,2]
[396253780,1764885032084,-500.0,0.00013169,2]
[396253781,1764885032094,-500.0,0.00013169,2]
[396253782,1764885032104,-500.0,0.00013169,2]
[396253783,1764885032113,-500.0,0.00013169,2]
[396253784,1764885032123,-447.66519329,0.00013169,2]
[396253785,1764885032133,-500.0,0.00013169,2]
[396253786,1764885032143,-500.0,0.00013169,2]
[396253787,1764885032152,-500.0,0.00013169,2]
[396253788,1764885032162,-500.0,0.00013169,2]
[396253789,1764885032173,-500.0,0.00013169,2]
[396253790,1764885032214,-500.0,0.00013169,2]
[396253791,1764885032224,-210.24758371,0.00013169,2]
[396253792,1764885032234,-500.0,0.00013169,2]
[396253793,1764885032244,-500.0,0.00013169,2]
[396253794,1764885032255,-500.0,0.00013169,2]
[396253795,1764885032265,-500.0,0.00013169,2]
[396253796,1764885032275,-500.0,0.00013169,2]
[396253797,1764885032285,-500.0,0.00013169,2]
[396253798,1764885032295,-500.0,0.00013169,2]
[396253799,1764885032304,-500.0,0.00013169,2]
[396253800,1764885032314,-500.0,0.00013169,2]
[396253801,1764885032323,-500.0,0.00013169,2]
[396253802,1764885032332,-500.0,0.00013169,2]
[396253803,1764885032342,-500.0,0.00013169,2]
[396253804,1764885032351,-580.77040715,0.00013169,2]
[396253805,1764885032361,-500.0,0.00013169,2]
[396253806,1764885032371,-500.0,0.00013169,2]
[396253807,1764885032380,-500.0,0.00013169,2]
[396253808,1764885032390,-500.0,0.00013169,2]
[396253809,1764885032399,-500.0,0.00013169,2]
[396253810,1764885032409,-500.0,0.00013169,2]
[396253811,1764885032418,-500.0,0.00013169,2]
[396253812,1764885032427,-500.0,0.00013169,2]
[396253813,1764885032437,-500.0,0.00013169,2]
[396253814,1764885032447,-650.0,0.00013169,2]
[396253815,1764885032460,-500.0,0.00013169,2]
[396253816,1764885032471,-500.0,0.00013169,2]
[396253817,1764885032480,-500.0,0.00013169,2]
[396253818,1764885032489,-500.0,0.00013169,2]
[396253819,1764885032500,-500.0,0.00013169,2]
[396253820,1764885032509,-500.0,0.00013169,2]
[396253821,1764885032519,-500.0,0.00013169,2]
[396253822,1764885032529,-500.0,0.00013169,2]
[396253823,1764885032539,-500.0,0.00013169,2]
[396253824,1764885032548,-500.0,0.00013169,2]
[396253826,1764885032558,-500.0,0.00013169,2]
[396253827,1764885032568,-500.0,0.00013169,2]
[396253828,1764885032578,-500.0,0.00013169,2]
[396253829,1764885032588,-500.0,0.00013169,2]
[396253830,1764885032597,-176.93366433,0.00013169,2]
[396253831,1764885032608,-500.0,0.00013169,2]
[396253832,1764885032617,-500.0,0.00013169,2]
[396253833,1764885032626,-300.0,0.00013169,2]
[396253834,1764885032636,-56523.84394364,0.0001317,2]
[396253835,1764885032648,-28289.51667992,0.0001317,2]
[396253836,1764885032659,-607.51500014,0.0001317,2]
[396253860,1764885037767,-429553.47636185,0.0001317,2]
[396253861,1764885037778,-3570.1137,0.0001317,2]
[396253862,1764885037789,-617.6599536,0.0001317,2]
[396253863,1764885037831,-677.57381246,0.0001317,2]
[396253864,1764885037841,-1668.75000003,0.0001317,2]
[396253865,1764885037852,-653.5749005,0.0001317,2]
[396253866,1764885037889,-9733.62907546,0.0001317,2]
[396253867,1764885037900,-26970.45435656,0.0001317,2]
[396253891,1764885040262,-5545.07310331,0.0001317,2]
[396253892,1764885040273,-10423.99146691,0.0001317,2]
[396253918,1764885043034,-30748.65141089,0.0001317,2]
[396253919,1764885043046,-1038.06979688,0.0001317,2]
[396253935,1764885045748,-122443.38082366,0.0001317,2]
[396253936,1764885045760,-483.90748233,0.0001317,2]
[396253937,1764885045809,-6145.95023051,0.0001317,2]
[396253938,1764885045821,-516.50743114,0.0001317,2]
[396253939,1764885045833,-2541.15849417,0.0001317,2]
[396253940,1764885045880,-14898.73920524,0.0001317,2]
[396253941,1764885045891,-70857.47819547,0.0001317,2]
[396253948,1764885095957,-240.73280281,0.00012909,2]
[396253949,1764885118331,-321.42437731,0.00012909,2]
[396253950,1764885120381,-270.57063581,0.00012909,2]
[396253951,1764885121945,-191.40036198,0.00012909,2]
[396253952,1764885125069,-151.0,0.00012909,2]
[396253953,1764885239051,465.702,0.00012751,2]